fUST/lending_fUST_20260118
["ID","MTS","AMOUNT","RATE_DAILY","PERIOD"]
[402426539,1768675840853,-500.0,0.00016438,2]
[402426540,1768675840863,-506.03,0.00016438,3]
[402426541,1768675840873,-523.94812621,0.00016438,3]
[402426543,1768675840882,-519.62,0.00016438,3]
[402426545,1768675840891,-510.42,0.00016438,3]
[402426547,1768675840900,-500.0,0.00016438,3]
[402426549,1768675840909,-500.0,0.00016438,2]
[402426551,1768675840920,-500.0,0.00016438,3]
[402426553,1768675840929,-500.0,0.00016438,3]
[402426555,1768675840938,-500.0,0.00016438,3]
[402426557,1768675840947,-500.0,0.00016438,3]
[402426559,1768675840956,-500.0,0.00016438,3]
[402426561,1768675840967,-500.0,0.00016438,3]
[402426563,1768675840976,-500.0,0.00016438,3]
[402426565,1768675840986,-500.0,0.00016438,3]
[402426567,1768675840995,-502.82,0.00016438,3]
[402426569,1768675841005,-500.0,0.00016438,3]
[402426571,1768675841014,-808.14,0.00016438,3]
[402426573,1768675841023,-500.0,0.00016438,3]
[402426575,1768675841033,-500.0,0.00016438,3]
[402426577,1768675841043,-500.0,0.00016438,3]
[402426579,1768675841053,-500.0,0.00016438,3]
[402426581,1768675841062,-500.0,0.00016438,3]
[402426583,1768675841072,-724.63,0.00016438,3]
[402426585,1768675841082,-1374.8,0.00016438,3]
[402426587,1768675841091,-500.0,0.00016438,3]
[402426589,1768675841101,-392.31626832,0.00016438,3]
[402426591,1768675841110,-500.0,0.00016438,3]
[402426593,1768675841119,-500.0,0.00016438,3]
[402426595,1768675841129,-500.0,0.00016438,3]
[402426597,1768675841138,-1054.46,0.00016438,3]
[402426599,1768675841148,-606.30623582,0.00016438,3]
[402426601,1768675841158,-500.0,0.00016438,3]
[402426603,1768675841167,-500.0,0.00016438,3]
[402426605,1768675841176,-500.0,0.00016438,3]
[402426607,1768675841186,-500.0,0.00016438,3]
[402426609,1768675841195,-500.0,0.00016438,3]
[402426611,1768675841205,-737.54,0.00016438,3]
[402426613,1768675841215,-500.0,0.00016438,3]
[402426615,1768675841224,-500.0,0.00016438,3]
[402426617,1768675841234,-500.0,0.00016438,3]
[402426619,1768675841243,-500.0,0.00016438,3]
[402426621,1768675841252,-500.0,0.00016438,3]
[402426623,1768675841262,-500.0,0.00016438,3]
[402426625,1768675841273,-500.0,0.00016438,3]
[402426627,1768675841283,-500.0,0.00016438,3]
[402426629,1768675841293,-952.61,0.00016438,3]
[402426631,1768675841302,-500.0,0.00016438,3]
[402426633,1768675841311,-500.0,0.00016438,3]
[402426635,1768675841321,-500.0,0.00016438,3]
[402426637,1768675841330,-503.62,0.00016438,3]
[402426639,1768675841339,-500.0,0.00016438,3]
[402426641,1768675841351,-500.0,0.00016438,3]
[402426643,1768675841360,-500.0,0.00016438,3]
[402426645,1768675841370,-979.67,0.00016438,3]
[402426647,1768675841379,-719.44,0.00016438,3]
[402426649,1768675841389,-932.18,0.00016438,3]
[402426651,1768675841398,-500.0,0.00016438,3]
[402426653,1768675841409,-500.0,0.00016438,3]
[402426655,1768675841417,-982.12,0.00016438,3]
[402426657,1768675841426,-500.0,0.00016438,3]
[402426659,1768675841436,-915.97,0.00016438,3]
[402426661,1768675841445,-514.33,0.00016438,3]
[402426663,1768675841455,-500.0,0.00016438,3]
[402426665,1768675841464,-500.0,0.00016438,3]
[402426667,1768675841473,-500.0,0.00016438,3]
[402426669,1768675841483,-822.86,0.00016438,3]
[402426671,1768675841492,-500.0,0.00016438,3]
[402426673,1768675841501,-1158.19,0.00016438,3]
[402426675,1768675841510,-500.0,0.00016438,3]
[402426677,1768675841520,-500.0,0.00016438,3]
[402426679,1768675841530,-500.0,0.00016438,3]
[402426681,1768675841539,-500.0,0.00016438,3]
[402426683,1768675841548,-500.0,0.00016438,3]
[402426685,1768675841557,-500.0,0.00016438,3]
[402426687,1768675841567,-1545.23,0.00016438,3]
[402426689,1768675841577,-500.0,0.00016438,3]
[402426691,1768675841587,-1920.93,0.00016438,3]
[402426693,1768675841596,-536.54,0.00016438,3]
[402426695,1768675841606,-500.0,0.00016438,3]
[402426697,1768675841620,-500.0,0.00016438,3]
[402426699,1768675841629,-1564.12,0.00016438,3]
[402426701,1768675841639,-500.0,0.00016438,3]
[402426703,1768675841649,-1132.13,0.00016438,3]
[402426705,1768675841659,-500.0,0.00016438,3]
[402426707,1768675841668,-500.0,0.00016438,3]
[402426709,1768675841679,-500.0,0.00016438,3]
[402426711,1768675841688,-500.0,0.00016438,3]
[402426713,1768675841697,-652.64,0.00016438,3]
[402426715,1768675841707,-500.0,0.00016438,3]
[402426717,1768675841717,-1416.4,0.00016438,3]
[402426719,1768675841726,-500.0,0.00016438,3]
[402426721,1768675841737,-500.0,0.00016438,3]
[402426723,1768675841746,-500.0,0.00016438,3]
[402426725,1768675841755,-1075.4,0.00016438,3]
[402426727,1768675841765,-500.0,0.00016438,3]
[402426729,1768675841774,-500.0,0.00016438,3]
[402426731,1768675841783,-1096.32,0.00016438,3]
[402426733,1768675841793,-500.0,0.00016438,3]
[402426735,1768675841802,-500.0,0.00016438,3]
[402426737,1768675841812,-500.0,0.00016438,3]
[402426739,1768675841821,-752.51,0.00016438,3]
[402426741,1768675841831,-500.0,0.00016438,3]
[402426743,1768675841841,-500.0,0.00016438,3]
[402426745,1768675841851,-500.0,0.00016438,3]
[402426747,1768675841860,-500.0,0.00016438,3]
[402426749,1768675841870,-500.0,0.00016438,3]
[402426751,1768675841880,-500.0,0.00016438,3]
[402426753,1768675841890,-500.0,0.00016438,3]
[402426756,1768675841900,-500.0,0.00016438,3]
[402426758,1768675841909,-500.0,0.00016438,3]
[402426760,1768675841919,-657.67,0.00016438,3]
[402426762,1768675841929,-500.0,0.00016438,3]
[402426764,1768675841938,-500.0,0.00016438,3]
[402426766,1768675841947,-500.0,0.00016438,3]
[402426768,1768675841957,-500.0,0.00016438,3]
[402426770,1768675841967,-500.0,0.00016438,3]
[402426772,1768675841977,-784.82,0.00016438,3]
[402426774,1768675841987,-500.0,0.00016438,3]
[402426776,1768675841997,-625.18,0.00016438,3]
[402426778,1768675842006,-500.0,0.00016438,3]
[402426780,1768675842015,-500.0,0.00016438,3]
[402426782,1768675842024,-1000.0,0.00016438,2]
[402426784,1768675842034,-500.0,0.00016438,3]
[402426786,1768675842043,-1239.89,0.00016438,3]
[402426788,1768675842053,-500.0,0.00016438,3]
[402426790,1768675842063,-500.0,0.00016438,3]
[402426792,1768675842073,-1672.89,0.00016438,3]
[402426794,1768675842082,-652.44,0.00016438,3]
[402426796,1768675842094,-500.0,0.00016438,3]
[402426798,1768675842104,-1667.11,0.00016438,3]
[402426800,1768675842114,-620.35,0.00016438,3]
[402426802,1768675842125,-1466.89,0.00016438,3]
[402426803,1768675842134,-500.0,0.00016438,3]
[402426804,1768675842143,-500.0,0.00016438,3]
[402426805,1768675842152,-500.0,0.00016438,3]
[402426806,1768675842162,-500.0,0.00016438,3]
[402426807,1768675842171,-500.0,0.00016438,3]
[402426808,1768675842180,-500.0,0.00016438,3]
[402426809,1768675842190,-500.0,0.00016438,3]
[402426810,1768675842200,-500.0,0.00016438,2]
[402426811,1768675842209,-1430.32,0.00016438,3]
[402426812,1768675842218,-500.0,0.00016438,3]
[402426814,1768675842228,-500.0,0.00016438,3]
[402426815,1768675842237,-500.0,0.00016438,3]
[402426816,1768675842247,-500.0,0.00016438,3]
[402426817,1768675842256,-500.0,0.00016438,3]
[402426818,1768675842266,-500.0,0.00016438,3]
[402426819,1768675842276,-500.0,0.00016438,3]
[402426820,1768675842285,-500.0,0.00016438,3]
[402426821,1768675842295,-500.0,0.00016438,3]
[402426822,1768675842304,-2427.21,0.00016438,3]
[402426823,1768675842314,-241.75904852,0.00016438,3]
[402426824,1768675842324,-843.85,0.00016438,3]
[402426825,1768675842334,-500.0,0.00016438,3]
[402426826,1768675842343,-500.0,0.00016438,3]
[402426827,1768675842353,-2175.59,0.00016438,3]
[402426828,1768675842363,-584.46,0.00016438,3]
[402426829,1768675842373,-500.0,0.00016438,3]
[402426830,1768675842382,-500.0,0.00016438,3]
[402426831,1768675842392,-500.0,0.00016438,3]
[402426832,1768675842401,-500.0,0.00016438,3]
[402426833,1768675842411,-500.0,0.00016438,3]
[402426834,1768675842420,-500.0,0.00016438,3]
[402426835,1768675842430,-500.0,0.00016438,3]
[402426836,1768675842439,-500.0,0.00016438,3]
[402426837,1768675842449,-753.6,0.00016438,3]
[402426838,1768675842458,-1210.67,0.00016438,3]
[402426839,1768675842467,-500.0,0.00016438,3]
[402426840,1768675842477,-500.0,0.00016438,3]
[402426841,1768675842487,-1177.08,0.00016438,3]
[402426842,1768675842496,-500.0,0.00016438,3]
[402426844,1768675842506,-500.0,0.00016438,3]
[402426846,1768675842517,-500.0,0.00016438,3]
[402426848,1768675842526,-500.0,0.00016438,3]
[402426850,1768675842536,-733.19,0.00016438,3]
[402426852,1768675842545,-591.87,0.00016438,3]
[402426854,1768675842555,-500.0,0.00016438,3]
[402426856,1768675842565,-553.19,0.00016438,3]
[402426858,1768675842575,-500.0,0.00016438,3]
[402426860,1768675842585,-500.0,0.00016438,3]
[402426863,1768675842595,-500.0,0.00016438,3]
[402426865,1768675842605,-500.0,0.00016438,3]
[402426867,1768675842618,-500.0,0.00016438,3]
[402426869,1768675842628,-500.0,0.00016438,3]
[402426871,1768675842638,-500.0,0.00016438,3]
[402426873,1768675842647,-609.57,0.00016438,3]
[402426875,1768675842660,-500.0,0.00016438,3]
[402426877,1768675842670,-779.45,0.00016438,3]
[402426879,1768675842679,-500.0,0.00016438,3]
[402426881,1768675842690,-930.42,0.00016438,3]
[402426883,1768675842700,-500.0,0.00016438,3]
[402426886,1768675842710,-246.89631936,0.00016438,3]
[402426888,1768675842720,-978.58,0.00016438,3]
[402426890,1768675842729,-500.0,0.00016438,3]
[402426892,1768675842739,-503.39,0.00016438,3]
[402426894,1768675842749,-500.0,0.00016438,3]
[402426896,1768675842759,-500.0,0.00016438,3]
[402426898,1768675842769,-500.0,0.00016438,3]
[402426900,1768675842779,-500.0,0.00016438,3]
[402426902,1768675842789,-474.92477012,0.00016438,3]
[402426904,1768675842799,-676.55,0.00016438,3]
[402426906,1768675842809,-500.0,0.00016438,3]
[402426908,1768675842819,-500.0,0.00016438,3]
[402426910,1768675842830,-500.0,0.00016438,3]
[402426913,1768675842840,-1244.98,0.00016438,3]
[402426915,1768675842850,-500.0,0.00016438,3]
[402426917,1768675842860,-1356.45,0.00016438,3]
[402426919,1768675842870,-658.22,0.00016438,3]
[402426921,1768675842880,-500.0,0.00016438,3]
[402426923,1768675842890,-684.41,0.00016438,3]
[402426925,1768675842900,-667.89,0.00016438,3]
[402426927,1768675842910,-500.0,0.00016438,3]
[402426929,1768675842920,-1628.67,0.00016438,3]
[402426931,1768675842930,-500.0,0.00016438,3]
[402426933,1768675842940,-500.0,0.00016438,3]
[402426935,1768675842950,-500.0,0.00016438,3]
[402426937,1768675842960,-1219.0,0.00016438,3]
[402426940,1768675842969,-825.95,0.00016438,3]
[402426942,1768675842979,-500.0,0.00016438,3]
[402426944,1768675842989,-500.0,0.00016438,3]
[402426946,1768675842999,-937.01,0.00016438,3]
[402426948,1768675843008,-500.0,0.00016438,3]
[402426951,1768675843018,-574.969696,0.00016438,3]
[402426953,1768675843028,-500.0,0.00016438,3]
[402426955,1768675843038,-843.19,0.00016438,3]
[402426957,1768675843048,-947.02,0.00016438,3]
[402426959,1768675843058,-500.0,0.00016438,3]
[402426961,1768675843068,-933.84,0.00016438,3]
[402426963,1768675843078,-500.0,0.00016438,3]
[402426965,1768675843087,-527.42325342,0.00016438,3]
[402426967,1768675843097,-500.0,0.00016438,3]
[402426969,1768675843107,-500.0,0.00016438,3]
[402426971,1768675843117,-1134.33,0.00016438,3]
[402426974,1768675843128,-216.1398381,0.00016438,3]
[402426976,1768675843137,-500.0,0.00016438,3]
[402426978,1768675843148,-500.0,0.00016438,3]
[402426980,1768675843157,-1667.68,0.00016438,3]
[402426982,1768675843167,-500.0,0.00016438,3]
[402426984,1768675843177,-640.01,0.00016438,3]
[402426986,1768675843187,-500.0,0.00016438,3]
[402426988,1768675843196,-500.0,0.00016438,3]
[402426990,1768675843206,-761.33,0.00016438,3]
[402426992,1768675843216,-500.0,0.00016438,3]
[402426994,1768675843226,-500.0,0.00016438,3]
[402426996,1768675843236,-500.0,0.00016438,3]
[402426998,1768675843246,-500.0,0.00016438,3]
[402427000,1768675843256,-509.91,0.00016438,3]
[402427002,1768675843266,-500.0,0.00016438,3]
[402427004,1768675843276,-500.0,0.00016438,3]
[402427006,1768675843287,-500.0,0.00016438,3]
[402427008,1768675843296,-500.0,0.00016438,3]
[402427011,1768675843307,-1711.38,0.00016438,3]
[402427013,1768675843317,-1068.39,0.00016438,3]
[402427015,1768675843327,-505.85783189,0.00016438,3]
[402427017,1768675843337,-500.0,0.00016438,3]
[402427019,1768675843347,-500.0,0.00016438,3]
[402427021,1768675843357,-427.39365242,0.00016438,3]
[402427023,1768675843366,-500.0,0.00016438,3]
[402427025,1768675843376,-500.0,0.00016438,3]
[402427027,1768675843386,-500.0,0.00016438,3]
[402427029,1768675843395,-500.0,0.00016438,3]
[402427031,1768675843405,-1264.17,0.00016438,3]
[402427033,1768675843415,-500.0,0.00016438,3]
[402427035,1768675843425,-466.05554011,0.00016438,3]
[402427037,1768675843435,-1911.06,0.00016438,3]
[402427039,1768675843444,-586.6276719,0.00016438,3]
[402427041,1768675843454,-500.0,0.00016438,3]
[402427043,1768675843464,-500.0,0.00016438,3]
[402427045,1768675843473,-731.23,0.00016438,3]
[402427048,1768675843483,-2552.27,0.00016438,3]
[402427050,1768675843493,-1441.61,0.00016438,3]
[402427052,1768675843503,-1297.14,0.00016438,3]
[402427054,1768675843513,-901.56,0.00016438,3]
[402427056,1768675843524,-762.49,0.00016438,3]
[402427058,1768675843533,-500.0,0.00016438,3]
[402427060,1768675843543,-1023.82,0.00016438,3]
[402427062,1768675843553,-500.0,0.00016438,3]
[402427064,1768675843563,-500.0,0.00016438,3]
[402427066,1768675843573,-500.0,0.00016438,3]
[402427068,1768675843583,-500.0,0.00016438,3]
[402427070,1768675843594,-500.0,0.00016438,3]
[402427072,1768675843604,-500.0,0.00016438,3]
[402427074,1768675843616,-500.0,0.00016438,3]
[402427076,1768675843629,-500.0,0.00016438,3]
[402427078,1768675843638,-500.0,0.00016438,3]
[402427080,1768675843652,-808.76,0.00016438,3]
[402427082,1768675843664,-500.0,0.00016438,3]
[402427084,1768675843674,-500.0,0.00016438,3]
[402427087,1768675843684,-730.43,0.00016438,3]
[402427089,1768675843696,-500.0,0.00016438,3]
[402427091,1768675843706,-917.73,0.00016438,3]
[402427093,1768675843715,-906.34,0.00016438,3]
[402427095,1768675843724,-500.0,0.00016438,3]
[402427097,1768675843734,-569.12,0.00016438,3]
[402427099,1768675843743,-1618.42,0.00016438,3]
[402427101,1768675843753,-500.0,0.00016438,3]
[402427103,1768675843763,-1752.95,0.00016438,3]
[402427105,1768675843772,-697.63,0.00016438,3]
[402427107,1768675843782,-178.3,0.00016438,2]
[402427109,1768675843793,-575.62,0.00016438,3]
[402427111,1768675843803,-1011.8,0.00016438,3]
[402427113,1768675843813,-403.87472748,0.00016438,3]
[402427115,1768675843823,-619.55,0.00016438,3]
[402427117,1768675843834,-795.91,0.00016438,3]
[402427119,1768675843843,-500.0,0.00016438,3]
[402427121,1768675843853,-500.0,0.00016438,3]
[402427123,1768675843863,-669.17,0.00016438,3]
[402427125,1768675843872,-500.0,0.00016438,2]
[402427127,1768675843882,-534.25045514,0.00016438,3]
[402427129,1768675843893,-500.0,0.00016438,2]
[402427131,1768675843902,-500.0,0.00016438,2]
[402427133,1768675843912,-500.0,0.00016438,3]
[402427135,1768675843921,-500.0,0.00016438,2]
[402427137,1768675843931,-500.0,0.00016438,2]
[402427139,1768675843940,-500.0,0.00016438,2]
[402427141,1768675843950,-500.0,0.00016438,2]
[402427143,1768675843960,-500.0,0.00016438,2]
[402427145,1768675843970,-500.0,0.00016438,2]
[402427147,1768675843980,-500.0,0.00016438,2]
[402427175,1768675843990,-500.0,0.00016438,2]
[402427178,1768675844253,-500.0,0.00016438,2]
[402427180,1768675844266,-500.0,0.00016438,3]
[402427182,1768675844276,-500.0,0.00016438,2]
[402427184,1768675844286,-500.0,0.00016438,2]
[402427186,1768675844297,-177.63255502,0.00016438,2]
[402427188,1768675844306,-865.41,0.00016438,3]
[402427190,1768675844316,-500.0,0.00016438,3]
[402427192,1768675844326,-500.0,0.00016438,3]
[402427194,1768675844335,-500.0,0.00016438,3]
[402427196,1768675844344,-500.0,0.00016438,3]
[402427199,1768675844355,-500.0,0.00016438,3]
[402427200,1768675844364,-500.0,0.00016438,3]
[402427203,1768675844374,-1562.03,0.00016438,3]
[402427204,1768675844383,-500.0,0.00016438,3]
[402427207,1768675844393,-500.0,0.00016438,3]
[402427209,1768675844403,-500.0,0.00016438,3]
[402427211,1768675844412,-598.38,0.00016438,3]
[402427213,1768675844421,-500.0,0.00016438,3]
[402427215,1768675844431,-680.48,0.00016438,3]
[402427217,1768675844440,-502.72122114,0.00016438,3]
[402427219,1768675844450,-1316.96,0.00016438,3]
[402427221,1768675844459,-500.0,0.00016438,3]
[402427223,1768675844468,-1646.11,0.00016438,3]
[402427225,1768675844478,-500.0,0.00016438,3]
[402427227,1768675844487,-500.0,0.00016438,3]
[402427229,1768675844496,-500.0,0.00016438,3]
[402427231,1768675844506,-500.0,0.00016438,3]
[402427233,1768675844516,-500.0,0.00016438,3]
[402427235,1768675844525,-500.0,0.00016438,3]
[402427237,1768675844535,-500.0,0.00016438,3]
[402427239,1768675844543,-500.0,0.00016438,3]
[402427241,1768675844552,-500.0,0.00016438,3]
[402427243,1768675844561,-923.82,0.00016438,3]
[402427245,1768675844571,-500.0,0.00016438,3]
[402427247,1768675844580,-539.74,0.00016438,3]
[402427249,1768675844589,-500.0,0.00016438,3]
[402427251,1768675844600,-500.0,0.00016438,3]
[402427253,1768675844609,-500.0,0.00016438,3]
[402427255,1768675844623,-523.41303574,0.00016438,3]
[402427257,1768675844632,-545.96,0.00016438,3]
[402427259,1768675844642,-500.0,0.00016438,3]
[402427261,1768675844651,-539.86,0.00016438,3]
[402427263,1768675844662,-500.0,0.00016438,3]
[402427265,1768675844671,-500.0,0.00016438,3]
[402427267,1768675844681,-500.0,0.00016438,3]
[402427269,1768675844691,-500.0,0.00016438,3]
[402427271,1768675844701,-895.54,0.00016438,3]
[402427273,1768675844710,-500.0,0.00016438,3]
[402427275,1768675844720,-500.0,0.00016438,3]
[402427277,1768675844729,-1249.71,0.00016438,3]
[402427279,1768675844738,-500.0,0.00016438,3]
[402427281,1768675844748,-822.61,0.00016438,3]
[402427283,1768675844757,-500.0,0.00016438,3]
[402427285,1768675844766,-545.77,0.00016438,3]
[402427287,1768675844776,-500.0,0.00016438,3]
[402427289,1768675844785,-500.0,0.00016438,3]
[402427291,1768675844794,-1542.26,0.00016438,3]
[402427293,1768675844803,-500.0,0.00016438,3]
[402427295,1768675844812,-500.0,0.00016438,3]
[402427298,1768675844823,-500.0,0.00016438,3]
[402427300,1768675844832,-500.0,0.00016438,3]
[402427302,1768675844841,-500.0,0.00016438,3]
[402427303,1768675844851,-739.58,0.00016438,3]
[402427305,1768675844860,-500.0,0.00016438,3]
[402427308,1768675844869,-500.0,0.00016438,3]
[402427310,1768675844878,-172.631544,0.00016438,3]
[402427312,1768675844888,-500.0,0.00016438,3]
[402427314,1768675844898,-500.0,0.00016438,3]
[402427316,1768675844908,-1833.14,0.00016438,3]
[402427318,1768675844918,-159.17857658,0.00016438,3]
[402427320,1768675844928,-1311.65,0.00016438,3]
[402427321,1768675844937,-500.0,0.00016438,3]
[402427323,1768675844946,-500.0,0.00016438,3]
[402427326,1768675844956,-994.35,0.00016438,3]
[402427328,1768675844967,-158.856128,0.00016438,3]
[402427330,1768675844976,-500.0,0.00016438,3]
[402427332,1768675844986,-500.0,0.00016438,3]
[402427334,1768675844996,-1390.83,0.00016438,3]
[402427336,1768675845005,-500.0,0.00016438,3]
[402427338,1768675845015,-500.0,0.00016438,3]
[402427340,1768675845024,-500.0,0.00016438,3]
[402427342,1768675845033,-500.0,0.00016438,3]
[402427344,1768675845042,-503.23047835,0.00016438,3]
[402427346,1768675845051,-500.0,0.00016438,3]
[402427348,1768675845061,-500.0,0.00016438,3]
[402427350,1768675845070,-1684.0,0.00016438,3]
[402427352,1768675845079,-500.0,0.00016438,3]
[402427354,1768675845088,-500.0,0.00016438,3]
[402427356,1768675845098,-500.0,0.00016438,3]
[402427358,1768675845108,-500.0,0.00016438,3]
[402427360,1768675845117,-500.0,0.00016438,3]
[402427362,1768675845127,-529.4766639,0.00016438,3]
[402427364,1768675845137,-1347.43,0.00016438,3]
[402427366,1768675845147,-500.0,0.00016438,3]
[402427368,1768675845156,-500.0,0.00016438,3]
[402427370,1768675845166,-1185.09,0.00016438,3]
[402427372,1768675845176,-500.0,0.00016438,3]
[402427374,1768675845186,-500.0,0.00016438,3]
[402427376,1768675845195,-500.0,0.00016438,3]
[402427378,1768675845204,-500.0,0.00016438,3]
[402427380,1768675845214,-504.66,0.00016438,3]
[402427383,1768675845224,-500.0,0.00016438,3]
[402427384,1768675845233,-500.0,0.00016438,3]
[402427386,1768675845243,-500.0,0.00016438,3]
[402427389,1768675845253,-500.0,0.00016438,3]
[402427391,1768675845262,-555.8,0.00016438,3]
[402427393,1768675845271,-500.0,0.00016438,3]
[402427395,1768675845280,-500.0,0.00016438,3]
[402427397,1768675845290,-564.15,0.00016438,3]
[402427399,1768675845299,-606.33,0.00016438,3]
[402427401,1768675845308,-500.0,0.00016438,3]
[402427403,1768675845318,-500.0,0.00016438,3]
[402427405,1768675845327,-500.0,0.00016438,3]
[402427407,1768675845336,-1200.0,0.00016438,2]
[402427408,1768675845346,-500.0,0.00016438,3]
[402427411,1768675845356,-500.0,0.00016438,3]
[402427413,1768675845366,-1439.56,0.00016438,3]
[402427415,1768675845375,-500.0,0.00016438,3]
[402427417,1768675845385,-500.0,0.00016438,3]
[402427418,1768675845395,-500.0,0.00016438,3]
[402427421,1768675845405,-892.6,0.00016438,3]
[402427422,1768675845414,-906.85,0.00016438,3]
[402427425,1768675845424,-770.84,0.00016438,3]
[402427427,1768675845433,-500.0,0.00016438,3]
[402427429,1768675845442,-826.27,0.00016438,3]
[402427431,1768675845452,-500.0,0.00016438,3]
[402427432,1768675845462,-500.0,0.00016438,3]
[402427435,1768675845473,-500.0,0.00016438,3]
[402427437,1768675845482,-646.32,0.00016438,3]
[402427439,1768675845492,-443.90722234,0.00016438,3]
[402427441,1768675845501,-500.0,0.00016438,3]
[402427443,1768675845511,-1431.76,0.00016438,3]
[402427444,1768675845520,-500.0,0.00016438,3]
[402427446,1768675845530,-500.0,0.00016438,3]
[402427449,1768675845540,-1218.15,0.00016438,3]
[402427450,1768675845550,-1873.13,0.00016438,3]
[402427452,1768675845559,-509.04,0.00016438,3]
[402427455,1768675845568,-741.52,0.00016438,3]
[402427457,1768675845578,-500.0,0.00016438,3]
[402427459,1768675845587,-1051.96,0.00016438,3]
[402427461,1768675845597,-500.0,0.00016438,3]
[402427463,1768675845607,-500.0,0.00016438,3]
[402427465,1768675845619,-500.0,0.00016438,3]
[402427467,1768675845629,-655.97,0.00016438,3]
[402427469,1768675845638,-596.42,0.00016438,3]
[402427471,1768675845648,-500.0,0.00016438,3]
[402427473,1768675845659,-412.6225604,0.00016438,3]
[402427475,1768675845668,-500.0,0.00016438,3]
[402427477,1768675845678,-600.91,0.00016438,3]
[402427479,1768675845688,-1783.16,0.00016438,3]
[402427481,1768675845697,-763.04,0.00016438,3]
[402427483,1768675845707,-552.3,0.00016438,3]
[402427485,1768675845716,-500.0,0.00016438,3]
[402427487,1768675845725,-500.0,0.00016438,3]
[402427489,1768675845735,-547.52,0.00016438,3]
[402427491,1768675845744,-500.0,0.00016438,3]
[402427493,1768675845753,-500.0,0.00016438,3]
[402427495,1768675845762,-861.47,0.00016438,3]
[402427497,1768675845771,-500.0,0.00016438,3]
[402427499,1768675845781,-696.99,0.00016438,3]
[402427501,1768675845790,-413.82786388,0.00016438,2]
[402427503,1768675845799,-500.0,0.00016438,3]
[402427505,1768675845808,-500.0,0.00016438,3]
[402427507,1768675845817,-680.42,0.00016438,3]
[402427509,1768675845827,-500.0,0.00016438,2]
[402427511,1768675845836,-500.0,0.00016438,3]
[402427513,1768675845846,-500.0,0.00016438,3]
[402427515,1768675845855,-500.0,0.00016438,3]
[402427516,1768675845864,-302.42547068,0.00016438,3]
[402427518,1768675845875,-500.0,0.00016438,3]
[402427520,1768675845885,-500.0,0.00016438,3]
[402427523,1768675845895,-693.13,0.00016438,3]
[402427525,1768675845905,-500.0,0.00016438,3]
[402427527,1768675845914,-500.0,0.00016438,3]
[402427529,1768675845924,-500.0,0.00016438,3]
[402427531,1768675845934,-500.0,0.00016438,3]
[402427533,1768675845944,-909.21,0.00016438,3]
[402427535,1768675845954,-1860.62,0.00016438,3]
[402427537,1768675845963,-500.0,0.00016438,3]